[Event "Late-Titled-Tuesday-Blitz-October-03-2023"]
[Site "Chess.com"]
[Date "2023.10.03"]
[Round "9"]
[White "ural58"]
[Black "carlospaul1990"]
[Result "0-1"]
[WhiteElo "2515"]
[BlackElo "2370"]
[TimeControl "180+1"]
[EndTime "15:40:59 PDT"]
[Termination "carlospaul1990 won on time"]

1. e4 {[%clk 0:02:58.7]} 1... c5 {[%clk 0:02:59.3]} 2. b3 {[%clk 0:02:57.6]}
2... Nc6 {[%clk 0:02:50.9]} 3. Bb2 {[%clk 0:02:55.1]} 3... e5 {[%clk 0:02:51.4]}
4. f4 {[%clk 0:02:47.9]} 4... exf4 {[%clk 0:02:40.6]} 5. Qf3 {[%clk 0:02:47]}
5... Nd4 {[%clk 0:02:35.9]} 6. Bxd4 {[%clk 0:02:44.2]} 6... cxd4 {[%clk
0:02:36.5]} 7. Qxf4 {[%clk 0:02:43.3]} 7... d5 {[%clk 0:02:28.6]} 8. Nf3 {[%clk
0:02:33.9]} 8... dxe4 {[%clk 0:02:08.5]} 9. Qxe4+ {[%clk 0:02:04.8]} 9... Be7
{[%clk 0:02:07.8]} 10. Qxd4 {[%clk 0:01:39]} 10... Qxd4 {[%clk 0:02:04.7]} 11.
Nxd4 {[%clk 0:01:33.1]} 11... Bf6 {[%clk 0:02:04.7]} 12. c3 {[%clk 0:01:29.4]}
12... Bxd4 {[%clk 0:02:03]} 13. cxd4 {[%clk 0:01:27.7]} 13... Nf6 {[%clk
0:02:03.6]} 14. Nc3 {[%clk 0:01:26.4]} 14... O-O {[%clk 0:02:03.4]} 15. O-O-O
{[%clk 0:01:25.8]} 15... Be6 {[%clk 0:02:02]} 16. Bc4 {[%clk 0:01:22.1]} 16...
Rfd8 {[%clk 0:01:29.4]} 17. Bxe6 {[%clk 0:01:13.4]} 17... fxe6 {[%clk 0:01:27]}
18. Rhe1 {[%clk 0:01:13.9]} 18... Kf7 {[%clk 0:01:26]} 19. Ne4 {[%clk
0:01:08.6]} 19... h6 {[%clk 0:01:03.8]} 20. Nxf6 {[%clk 0:01:05.4]} 20... gxf6
{[%clk 0:01:03.3]} 21. Re4 {[%clk 0:01:03]} 21... Rd5 {[%clk 0:01:02.9]} 22.
Rde1 {[%clk 0:01:00.3]} 22... Rc8+ {[%clk 0:01:00.6]} 23. Kd1 {[%clk 0:00:59.6]}
23... Rc6 {[%clk 0:01:01]} 24. Rh4 {[%clk 0:00:58.8]} 24... Kg6 {[%clk 0:00:55]}
25. Re3 {[%clk 0:00:52.2]} 25... Rcd6 {[%clk 0:00:41.9]} 26. Rg3+ {[%clk
0:00:49.1]} 26... Rg5 {[%clk 0:00:41.4]} 27. Rgg4 {[%clk 0:00:42.2]} 27... f5
{[%clk 0:00:29.3]} 28. Rg3 {[%clk 0:00:34.6]} 28... h5 {[%clk 0:00:18.8]} 29.
Rxg5+ {[%clk 0:00:21.7]} 29... Kxg5 {[%clk 0:00:18.7]} 30. g3 {[%clk 0:00:22.6]}
30... Ra6 {[%clk 0:00:17.9]} 31. a4 {[%clk 0:00:20.9]} 31... Rb6 {[%clk
0:00:17.8]} 32. Kc2 {[%clk 0:00:21.1]} 32... Rc6+ {[%clk 0:00:18.2]} 33. Kb2
{[%clk 0:00:21.4]} 33... Rd6 {[%clk 0:00:18.6]} 34. Kc3 {[%clk 0:00:21.5]} 34...
Rc6+ {[%clk 0:00:19]} 35. Kd3 {[%clk 0:00:21.8]} 35... Rb6 {[%clk 0:00:19.2]}
36. Kc4 {[%clk 0:00:22]} 36... Rc6+ {[%clk 0:00:19.3]} 37. Kb5 {[%clk 0:00:21]}
37... Rc2 {[%clk 0:00:19.3]} 38. d5 {[%clk 0:00:21.3]} 38... Rxd2 {[%clk
0:00:17.9]} 39. dxe6 {[%clk 0:00:20.6]} 39... Re2 {[%clk 0:00:18.3]} 40. a5
{[%clk 0:00:18.2]} 40... Re5+ {[%clk 0:00:17.3]} 41. Ka4 {[%clk 0:00:17.9]}
41... Rxe6 {[%clk 0:00:17.8]} 42. b4 {[%clk 0:00:18.8]} 42... Re4 {[%clk
0:00:17.3]} 43. Rxe4 {[%clk 0:00:13.7]} 43... fxe4 {[%clk 0:00:17.6]} 44. Kb3
{[%clk 0:00:11.8]} 44... Kg4 {[%clk 0:00:17.9]} 45. Kc2 {[%clk 0:00:12.2]} 45...
Kf3 {[%clk 0:00:18.5]} 46. Kd2 {[%clk 0:00:12.5]} 46... Kf2 {[%clk 0:00:18.8]}
0-1

[Event "Late-Titled-Tuesday-Blitz-October-03-2023"]
[Site "Chess.com"]
[Date "2023.10.03"]
[Round "9"]
[White "Lion_DL"]
[Black "MalcolmPein"]
[Result "1-0"]
[WhiteElo "2483"]
[BlackElo "2299"]
[TimeControl "180+1"]
[EndTime "15:41:02 PDT"]
[Termination "Lion_DL won on time"]

1. e4 {[%clk 0:03:00.9]} 1... d6 {[%clk 0:02:42.1]} 2. d4 {[%clk 0:02:59.7]}
2... Nf6 {[%clk 0:02:41.3]} 3. Nc3 {[%clk 0:03:00.1]} 3... g6 {[%clk 0:02:40.8]}
4. Be3 {[%clk 0:02:59.9]} 4... c6 {[%clk 0:02:40]} 5. Bd3 {[%clk 0:02:58.7]}
5... Nbd7 {[%clk 0:02:39.5]} 6. h3 {[%clk 0:02:56.6]} 6... Qc7 {[%clk
0:02:39.6]} 7. Nf3 {[%clk 0:02:47.7]} 7... e5 {[%clk 0:02:39.6]} 8. Qd2 {[%clk
0:02:42.3]} 8... b5 {[%clk 0:02:28.7]} 9. a4 {[%clk 0:02:34.4]} 9... b4 {[%clk
0:02:28.2]} 10. Ne2 {[%clk 0:02:35]} 10... c5 {[%clk 0:02:21.4]} 11. dxc5 {[%clk
0:02:29.4]} 11... dxc5 {[%clk 0:02:05.9]} 12. b3 {[%clk 0:02:24.6]} 12... Bb7
{[%clk 0:02:00.7]} 13. Ng3 {[%clk 0:02:23.4]} 13... h5 {[%clk 0:02:00.2]} 14.
Bg5 {[%clk 0:02:23.2]} 14... Be7 {[%clk 0:01:47]} 15. Qe2 {[%clk 0:02:12.7]}
15... Nh7 {[%clk 0:01:26.4]} 16. Bxe7 {[%clk 0:02:08.1]} 16... Kxe7 {[%clk
0:01:27.3]} 17. O-O {[%clk 0:02:06.1]} 17... Nhf6 {[%clk 0:01:22.3]} 18. Qe3
{[%clk 0:01:56.9]} 18... h4 {[%clk 0:01:21.6]} 19. Ne2 {[%clk 0:01:56]} 19...
Kf8 {[%clk 0:01:10.9]} 20. Ng5 {[%clk 0:01:43.2]} 20... Kg7 {[%clk 0:00:56.1]}
21. Bc4 {[%clk 0:01:36.9]} 21... Rh5 {[%clk 0:00:32.6]} 22. Rad1 {[%clk
0:01:28.3]} 22... Nb6 {[%clk 0:00:28.3]} 23. Bd3 {[%clk 0:01:09.1]} 23... c4
{[%clk 0:00:19.1]} 24. bxc4 {[%clk 0:01:08.3]} 24... Nxc4 {[%clk 0:00:20]} 25.
Qc1 {[%clk 0:00:59.9]} 25... Nd6 {[%clk 0:00:14.2]} 26. f4 {[%clk 0:00:56]}
26... Ndxe4 {[%clk 0:00:10.9]} 27. fxe5 {[%clk 0:00:34.4]} 27... Nxg5 {[%clk
0:00:07.2]} 28. exf6+ {[%clk 0:00:32.9]} 28... Kg8 {[%clk 0:00:06]} 29. Nf4
{[%clk 0:00:33.3]} 29... Qc5+ {[%clk 0:00:05.1]} 30. Kh2 {[%clk 0:00:27.4]}
30... Qc7 {[%clk 0:00:04.3]} 31. Kh1 {[%clk 0:00:25.8]} 31... Rh6 {[%clk
0:00:02.7]} 32. Nxg6 {[%clk 0:00:20.6]} 32... Rxg6 {[%clk 0:00:02.2]} 33. Bxg6
{[%clk 0:00:19.7]} 33... fxg6 {[%clk 0:00:02.4]} 34. Qxg5 {[%clk 0:00:19.9]}
34... Qg3 {[%clk 0:00:02]} 35. f7+ {[%clk 0:00:17.4]} 35... Kg7 {[%clk
0:00:01.6]} 36. Qxg3 {[%clk 0:00:16.8]} 36... hxg3 {[%clk 0:00:01.7]} 37. Rd3
{[%clk 0:00:16.8]} 37... Rf8 {[%clk 0:00:01.7]} 38. Rxg3 {[%clk 0:00:17.2]}
38... Rxf7 {[%clk 0:00:02]} 39. Rxf7+ {[%clk 0:00:17.5]} 39... Kxf7 {[%clk
0:00:02.9]} 40. Rd3 {[%clk 0:00:17.1]} 40... Ke6 {[%clk 0:00:02.4]} 41. Rd4
{[%clk 0:00:17.1]} 41... a5 {[%clk 0:00:02.2]} 42. Rc4 {[%clk 0:00:17.2]} 42...
Bd5 {[%clk 0:00:01.5]} 43. Rc5 {[%clk 0:00:17.4]} 43... b3 {[%clk 0:00:01.7]}
44. cxb3 {[%clk 0:00:17.1]} 44... Bxb3 {[%clk 0:00:02.6]} 45. Rxa5 {[%clk
0:00:17.3]} 45... g5 {[%clk 0:00:02.4]} 46. Kh2 {[%clk 0:00:17.5]} 1-0

[Event "Late-Titled-Tuesday-Blitz-October-03-2023"]
[Site "Chess.com"]
[Date "2023.10.03"]
[Round "9"]
[White "djano"]
[Black "Grossboss19"]
[Result "1-0"]
[WhiteElo "2685"]
[BlackElo "2515"]
[TimeControl "180+1"]
[EndTime "15:41:14 PDT"]
[Termination "djano won by resignation"]

1. e4 {[%clk 0:03:00.9]} 1... c6 {[%clk 0:03:00.1]} 2. d4 {[%clk 0:03:00.4]}
2... d5 {[%clk 0:02:57.8]} 3. exd5 {[%clk 0:03:01.3]} 3... cxd5 {[%clk
0:02:53.7]} 4. Bd3 {[%clk 0:03:01.7]} 4... Nc6 {[%clk 0:02:50.5]} 5. c3 {[%clk
0:03:01.9]} 5... g6 {[%clk 0:02:48.5]} 6. Nf3 {[%clk 0:03:01.9]} 6... Bf5 {[%clk
0:02:47.5]} 7. O-O {[%clk 0:03:00]} 7... Bxd3 {[%clk 0:02:46.6]} 8. Qxd3 {[%clk
0:03:00]} 8... Bg7 {[%clk 0:02:47.2]} 9. Qb5 {[%clk 0:02:53]} 9... Qd7 {[%clk
0:02:45.7]} 10. Na3 {[%clk 0:02:43.4]} 10... a6 {[%clk 0:02:44.1]} 11. Qe2
{[%clk 0:02:41]} 11... e6 {[%clk 0:02:41.9]} 12. Nc2 {[%clk 0:02:40.9]} 12...
Nge7 {[%clk 0:02:33.4]} 13. Nce1 {[%clk 0:02:40.6]} 13... O-O {[%clk 0:02:29.4]}
14. Nd3 {[%clk 0:02:41]} 14... b6 {[%clk 0:02:21.4]} 15. h4 {[%clk 0:02:38.9]}
15... h5 {[%clk 0:02:15.4]} 16. g3 {[%clk 0:02:27.5]} 16... Nf5 {[%clk 0:02:11]}
17. Bf4 {[%clk 0:02:23.8]} 17... Nd6 {[%clk 0:02:06.1]} 18. Kg2 {[%clk
0:02:19.9]} 18... Ne4 {[%clk 0:02:04.3]} 19. Nfe5 {[%clk 0:02:15.6]} 19... Nxe5
{[%clk 0:02:03.9]} 20. Bxe5 {[%clk 0:02:15]} 20... f6 {[%clk 0:02:00.8]} 21. Bf4
{[%clk 0:02:15.3]} 21... g5 {[%clk 0:01:57]} 22. hxg5 {[%clk 0:02:11.2]} 22...
fxg5 {[%clk 0:01:54.1]} 23. Be5 {[%clk 0:02:11.6]} 23... g4 {[%clk 0:01:47.7]}
24. Rh1 {[%clk 0:01:54]} 24... Rf5 {[%clk 0:01:38.3]} 25. Bf4 {[%clk 0:01:29.9]}
25... Raf8 {[%clk 0:01:30.2]} 26. Rh2 {[%clk 0:01:29.6]} 26... Qf7 {[%clk
0:01:13]} 27. Rah1 {[%clk 0:01:28.8]} 27... Qg6 {[%clk 0:01:09.8]} 28. Qe3
{[%clk 0:01:24.8]} 28... Bf6 {[%clk 0:00:57.9]} 29. a3 {[%clk 0:01:23.9]} 29...
a5 {[%clk 0:00:49.2]} 30. Ne5 {[%clk 0:01:20.8]} 30... Bxe5 {[%clk 0:00:46]} 31.
dxe5 {[%clk 0:01:19.8]} 31... Rb8 {[%clk 0:00:41.9]} 32. c4 {[%clk 0:01:08.5]}
32... Nc5 {[%clk 0:00:36.9]} 33. b4 {[%clk 0:00:59.5]} 33... axb4 {[%clk
0:00:32]} 34. axb4 {[%clk 0:01:00.4]} 34... Na6 {[%clk 0:00:30.7]} 35. cxd5
{[%clk 0:00:53.9]} 35... exd5 {[%clk 0:00:20.1]} 36. Qd4 {[%clk 0:00:48.3]}
36... Nc7 {[%clk 0:00:16.8]} 37. Rc1 {[%clk 0:00:46.4]} 37... Ne6 {[%clk
0:00:13.6]} 38. Qxd5 {[%clk 0:00:44.9]} 38... Rd8 {[%clk 0:00:14.1]} 39. Qa2
{[%clk 0:00:41.4]} 39... Kh7 {[%clk 0:00:13.1]} 40. Rc4 {[%clk 0:00:25.8]} 40...
Qf7 {[%clk 0:00:08.9]} 41. Qc2 {[%clk 0:00:24.1]} 41... Kg8 {[%clk 0:00:07]} 42.
Be3 {[%clk 0:00:20]} 42... Rxe5 {[%clk 0:00:05.7]} 43. Rc6 {[%clk 0:00:16.8]}
43... Qh7 {[%clk 0:00:02.3]} 44. Qc4 {[%clk 0:00:14.9]} 44... Qe4+ {[%clk
0:00:01.4]} 45. Qxe4 {[%clk 0:00:15.1]} 45... Rxe4 {[%clk 0:00:02.3]} 46. Rxh5
{[%clk 0:00:15.5]} 46... b5 {[%clk 0:00:02]} 47. Rxb5 {[%clk 0:00:15.5]} 47...
Nd4 {[%clk 0:00:01.8]} 48. Rg5+ {[%clk 0:00:15.4]} 48... Kf7 {[%clk 0:00:01.6]}
49. Rc4 {[%clk 0:00:14]} 49... Ne6 {[%clk 0:00:01.9]} 50. Rxe4 {[%clk
0:00:12.8]} 50... Nxg5 {[%clk 0:00:02.8]} 51. Bxg5 {[%clk 0:00:13.5]} 51... Rb8
{[%clk 0:00:03.7]} 52. Bf4 {[%clk 0:00:12.8]} 52... Rxb4 {[%clk 0:00:04.6]} 53.
Rxb4 {[%clk 0:00:12.7]} 1-0

[Event "Late-Titled-Tuesday-Blitz-October-03-2023"]
[Site "Chess.com"]
[Date "2023.10.03"]
[Round "9"]
[White "Eloist"]
[Black "YellowJacek"]
[Result "1/2-1/2"]
[WhiteElo "2420"]
[BlackElo "2304"]
[TimeControl "180+1"]
[EndTime "15:41:18 PDT"]
[Termination "Game drawn by stalemate"]

1. e4 {[%clk 0:03:00.9]} 1... e5 {[%clk 0:02:57.5]} 2. Nf3 {[%clk 0:03:00]} 2...
Nf6 {[%clk 0:02:57.6]} 3. Nxe5 {[%clk 0:02:59]} 3... d6 {[%clk 0:02:57.4]} 4.
Nf3 {[%clk 0:02:58.7]} 4... Nxe4 {[%clk 0:02:57.6]} 5. Nc3 {[%clk 0:02:58.8]}
5... Nxc3 {[%clk 0:02:56.9]} 6. dxc3 {[%clk 0:02:59.2]} 6... Be7 {[%clk
0:02:57.4]} 7. Bd3 {[%clk 0:02:57]} 7... O-O {[%clk 0:02:57.4]} 8. Be3 {[%clk
0:02:54.6]} 8... Nd7 {[%clk 0:02:57.6]} 9. Qd2 {[%clk 0:02:52.7]} 9... Nc5
{[%clk 0:02:57.4]} 10. O-O-O {[%clk 0:02:51.1]} 10... Nxd3+ {[%clk 0:02:53]} 11.
Qxd3 {[%clk 0:02:44.9]} 11... Be6 {[%clk 0:02:50.9]} 12. Nd4 {[%clk 0:02:41.4]}
12... Qd7 {[%clk 0:02:40.5]} 13. f4 {[%clk 0:02:35.6]} 13... Bf6 {[%clk
0:02:31]} 14. Rde1 {[%clk 0:02:22.5]} 14... Bxd4 {[%clk 0:02:29.1]} 15. Qxd4
{[%clk 0:02:14]} 15... Rfe8 {[%clk 0:02:25.1]} 16. h3 {[%clk 0:02:09]} 16... Bf5
{[%clk 0:02:07.9]} 17. Bf2 {[%clk 0:02:07.4]} 17... d5 {[%clk 0:01:59.9]} 18.
Re5 {[%clk 0:02:00.5]} 18... Rxe5 {[%clk 0:01:55.6]} 19. fxe5 {[%clk 0:01:59.4]}
19... Be4 {[%clk 0:01:53.5]} 20. Re1 {[%clk 0:01:53.8]} 20... Qf5 {[%clk
0:01:40.7]} 21. g4 {[%clk 0:01:49.4]} 21... Qf3 {[%clk 0:01:34.3]} 22. Qe3
{[%clk 0:01:37.2]} 22... Qxe3+ {[%clk 0:01:31.9]} 23. Bxe3 {[%clk 0:01:33.4]}
23... Re8 {[%clk 0:01:30.2]} 24. Bf4 {[%clk 0:01:29.2]} 24... c6 {[%clk
0:01:24.7]} 25. c4 {[%clk 0:01:18.5]} 25... Kf8 {[%clk 0:01:23.4]} 26. cxd5
{[%clk 0:01:17.3]} 26... Bxd5 {[%clk 0:01:23.8]} 27. b3 {[%clk 0:01:11.4]} 27...
h6 {[%clk 0:01:21.4]} 28. c4 {[%clk 0:01:09.1]} 28... Be6 {[%clk 0:01:21.3]} 29.
Rd1 {[%clk 0:01:06.9]} 29... Ke7 {[%clk 0:01:21]} 30. Kc2 {[%clk 0:00:58.2]}
30... Rd8 {[%clk 0:01:17.4]} 31. Rd6 {[%clk 0:00:54]} 31... g5 {[%clk
0:01:09.2]} 32. Bg3 {[%clk 0:00:49.8]} 32... Rh8 {[%clk 0:01:08.7]} 33. Bf2
{[%clk 0:00:47.1]} 33... h5 {[%clk 0:00:58.4]} 34. Be3 {[%clk 0:00:44.4]} 34...
f6 {[%clk 0:00:47.5]} 35. Rd2 {[%clk 0:00:34.7]} 35... hxg4 {[%clk 0:00:44.7]}
36. hxg4 {[%clk 0:00:22.2]} 36... fxe5 {[%clk 0:00:39.3]} 37. Bxg5+ {[%clk
0:00:21.2]} 37... Kf7 {[%clk 0:00:39.7]} 38. Rf2+ {[%clk 0:00:20.8]} 38... Kg6
{[%clk 0:00:38.8]} 39. Rf6+ {[%clk 0:00:20.2]} 39... Kxg5 {[%clk 0:00:39.3]} 40.
Rxe6 {[%clk 0:00:20.7]} 40... Kf4 {[%clk 0:00:29.5]} 41. g5 {[%clk 0:00:18.9]}
41... Rd8 {[%clk 0:00:21.3]} 42. g6 {[%clk 0:00:17.9]} 42... Kf5 {[%clk
0:00:20.5]} 43. Re7 {[%clk 0:00:16.5]} 43... Kxg6 {[%clk 0:00:19.6]} 44. Rxe5
{[%clk 0:00:16]} 44... Kf6 {[%clk 0:00:19.7]} 45. Rh5 {[%clk 0:00:15.7]} 45...
Ke6 {[%clk 0:00:18.6]} 46. Rh7 {[%clk 0:00:15.5]} 46... Rd7 {[%clk 0:00:18.8]}
47. Rxd7 {[%clk 0:00:14.7]} 47... Kxd7 {[%clk 0:00:19.7]} 48. Kd3 {[%clk
0:00:14.8]} 48... Kd6 {[%clk 0:00:20.2]} 49. Kd4 {[%clk 0:00:15.1]} 49... Kc7
{[%clk 0:00:19.2]} 50. Ke5 {[%clk 0:00:14.5]} 50... Kd7 {[%clk 0:00:19.5]} 51.
b4 {[%clk 0:00:13.3]} 51... b6 {[%clk 0:00:19.8]} 52. c5 {[%clk 0:00:09.8]}
52... Ke7 {[%clk 0:00:19.9]} 53. cxb6 {[%clk 0:00:08.5]} 53... axb6 {[%clk
0:00:19.7]} 54. a4 {[%clk 0:00:08.7]} 54... c5 {[%clk 0:00:19.8]} 55. bxc5
{[%clk 0:00:07.9]} 55... bxc5 {[%clk 0:00:20.7]} 56. Kd5 {[%clk 0:00:08.2]}
56... Kd7 {[%clk 0:00:21.6]} 57. Kxc5 {[%clk 0:00:08.5]} 57... Kc7 {[%clk
0:00:22.5]} 58. Kb5 {[%clk 0:00:08.5]} 58... Kb7 {[%clk 0:00:23.4]} 59. a5
{[%clk 0:00:08.9]} 59... Ka8 {[%clk 0:00:24.3]} 60. a6 {[%clk 0:00:09.1]} 60...
Kb8 {[%clk 0:00:25.2]} 61. Kb6 {[%clk 0:00:09.5]} 61... Ka8 {[%clk 0:00:26.1]}
62. a7 {[%clk 0:00:10]} 1/2-1/2

[Event "Late-Titled-Tuesday-Blitz-October-03-2023"]
[Site "Chess.com"]
[Date "2023.10.03"]
[Round "9"]
[White "OYAcosta"]
[Black "Bodhanas"]
[Result "1-0"]
[WhiteElo "2189"]
[BlackElo "2131"]
[TimeControl "180+1"]
[EndTime "15:41:21 PDT"]
[Termination "OYAcosta won by checkmate"]

1. d4 {[%clk 0:02:55.2]} 1... Nf6 {[%clk 0:02:56.5]} 2. Bf4 {[%clk 0:02:51.7]}
2... g6 {[%clk 0:02:55.4]} 3. Nc3 {[%clk 0:02:49.1]} 3... Bg7 {[%clk 0:02:54.6]}
4. e4 {[%clk 0:02:49.4]} 4... d6 {[%clk 0:02:51.9]} 5. Qd2 {[%clk 0:02:49.2]}
5... Nbd7 {[%clk 0:02:42.8]} 6. O-O-O {[%clk 0:02:46.7]} 6... b6 {[%clk
0:02:35.9]} 7. h4 {[%clk 0:02:46.3]} 7... Bb7 {[%clk 0:02:30.7]} 8. f3 {[%clk
0:02:45]} 8... e5 {[%clk 0:02:12.3]} 9. Be3 {[%clk 0:02:38.8]} 9... Qe7 {[%clk
0:02:01.5]} 10. Bb5 {[%clk 0:02:25.7]} 10... O-O-O {[%clk 0:01:51.7]} 11. Nge2
{[%clk 0:02:18.8]} 11... a6 {[%clk 0:01:45.8]} 12. Ba4 {[%clk 0:02:16.7]} 12...
exd4 {[%clk 0:01:30.6]} 13. Nxd4 {[%clk 0:02:16]} 13... Ne5 {[%clk 0:01:27]} 14.
Qe2 {[%clk 0:02:05.9]} 14... b5 {[%clk 0:01:10.9]} 15. Bb3 {[%clk 0:01:53.1]}
15... c5 {[%clk 0:00:53.9]} 16. Ndxb5 {[%clk 0:01:47]} 16... axb5 {[%clk
0:00:52.9]} 17. Qxb5 {[%clk 0:01:47.6]} 17... Qd7 {[%clk 0:00:47.5]} 18. Qa5
{[%clk 0:01:40.8]} 18... Qc7 {[%clk 0:00:31.3]} 19. Qa7 {[%clk 0:01:40.2]} 19...
Bc6 {[%clk 0:00:28.4]} 20. Qa3 {[%clk 0:01:37.5]} 20... Qb7 {[%clk 0:00:21.1]}
21. Ba4 {[%clk 0:01:10.9]} 21... Bxa4 {[%clk 0:00:20]} 22. Qxa4 {[%clk
0:01:10.9]} 22... Qb4 {[%clk 0:00:18]} 23. Qa7 {[%clk 0:01:09.8]} 23... Qb7
{[%clk 0:00:17.8]} 24. Qa5 {[%clk 0:01:07.2]} 24... Qc7 {[%clk 0:00:17.3]} 25.
Qb5 {[%clk 0:00:46.2]} 25... Qb7 {[%clk 0:00:16.8]} 26. Qa4 {[%clk 0:00:46.8]}
26... Qc6 {[%clk 0:00:15.6]} 27. Qa3 {[%clk 0:00:43.2]} 27... Nc4 {[%clk
0:00:13.9]} 28. Qa7 {[%clk 0:00:38.2]} 28... Nxe3 {[%clk 0:00:13.5]} 29. Rd3
{[%clk 0:00:24.7]} 29... Qb7 {[%clk 0:00:12.1]} 30. Qa5 {[%clk 0:00:23.1]} 30...
Nxg2 {[%clk 0:00:11.5]} 31. Nb5 {[%clk 0:00:21.8]} 31... Nf4 {[%clk 0:00:11.4]}
32. Rxd6 {[%clk 0:00:14.6]} 32... Rd7 {[%clk 0:00:06.5]} 33. Rhd1 {[%clk
0:00:08.4]} 33... Rxd6 {[%clk 0:00:06.1]} 34. Nxd6+ {[%clk 0:00:08.1]} 34... Kb8
{[%clk 0:00:06.8]} 35. Nxb7 {[%clk 0:00:07.5]} 35... Kxb7 {[%clk 0:00:07.5]} 36.
Qxc5 {[%clk 0:00:07.6]} 36... Rc8 {[%clk 0:00:07.4]} 37. Qe7+ {[%clk 0:00:07.7]}
37... Rc7 {[%clk 0:00:08]} 38. Qe5 {[%clk 0:00:07.1]} 38... Ne6 {[%clk
0:00:08.4]} 39. f4 {[%clk 0:00:07]} 39... Nc5 {[%clk 0:00:08.1]} 40. Qd4 {[%clk
0:00:05.5]} 40... Nfxe4 {[%clk 0:00:08.6]} 41. Qd5+ {[%clk 0:00:05.3]} 41... Kc8
{[%clk 0:00:08.1]} 42. b4 {[%clk 0:00:05.9]} 42... Nb7 {[%clk 0:00:07.6]} 43.
Qxe4 {[%clk 0:00:06.2]} 43... Bc3 {[%clk 0:00:05.3]} 44. Qe8+ {[%clk 0:00:06]}
44... Nd8 {[%clk 0:00:05.4]} 45. Rxd8+ {[%clk 0:00:06.9]} 45... Kb7 {[%clk
0:00:05.6]} 46. Qb5+ {[%clk 0:00:07.5]} 46... Ka7 {[%clk 0:00:05.8]} 47. Qb8+
{[%clk 0:00:07.6]} 47... Ka6 {[%clk 0:00:05.5]} 48. Qxc7 {[%clk 0:00:08.3]}
48... Bxb4 {[%clk 0:00:04.9]} 49. Ra8+ {[%clk 0:00:08.3]} 49... Kb5 {[%clk
0:00:05]} 50. Rb8+ {[%clk 0:00:06.2]} 50... Ka4 {[%clk 0:00:05.2]} 51. Qa7+
{[%clk 0:00:05.4]} 51... Ba5 {[%clk 0:00:05.4]} 52. Qd4+ {[%clk 0:00:04]} 52...
Ka3 {[%clk 0:00:05.4]} 53. Qb2+ {[%clk 0:00:03.5]} 53... Ka4 {[%clk 0:00:05.2]}
54. Qb3# {[%clk 0:00:04.4]} 1-0

[Event "Late-Titled-Tuesday-Blitz-October-03-2023"]
[Site "Chess.com"]
[Date "2023.10.03"]
[Round "9"]
[White "Ali_rastbod"]
[Black "koncheto"]
[Result "1-0"]
[WhiteElo "2716"]
[BlackElo "2543"]
[TimeControl "180+1"]
[EndTime "15:41:25 PDT"]
[Termination "Ali_rastbod won on time"]

1. e4 {[%clk 0:02:10.2]} 1... c5 {[%clk 0:02:58.6]} 2. Nf3 {[%clk 0:02:10.7]}
2... d6 {[%clk 0:02:58.8]} 3. c3 {[%clk 0:02:10.5]} 3... Nf6 {[%clk 0:02:59.1]}
4. Be2 {[%clk 0:02:11.1]} 4... g6 {[%clk 0:02:59.2]} 5. O-O {[%clk 0:02:11.2]}
5... Bg4 {[%clk 0:02:59.1]} 6. Qb3 {[%clk 0:02:07.1]} 6... Qc7 {[%clk
0:02:16.2]} 7. d4 {[%clk 0:01:24.9]} 7... Bxf3 {[%clk 0:02:06.9]} 8. Bxf3 {[%clk
0:01:24.2]} 8... Nc6 {[%clk 0:02:03.6]} 9. d5 {[%clk 0:01:20.3]} 9... Ne5 {[%clk
0:02:01.1]} 10. Be2 {[%clk 0:01:20]} 10... Bg7 {[%clk 0:01:50.3]} 11. Nd2 {[%clk
0:01:15.6]} 11... O-O {[%clk 0:01:45.8]} 12. a4 {[%clk 0:01:16]} 12... a6 {[%clk
0:01:37.1]} 13. f4 {[%clk 0:01:13]} 13... Ned7 {[%clk 0:01:36.2]} 14. a5 {[%clk
0:01:13.4]} 14... Rfb8 {[%clk 0:01:33.5]} 15. Bf3 {[%clk 0:01:11.2]} 15... b5
{[%clk 0:01:21.6]} 16. axb6 {[%clk 0:01:12.1]} 16... Rxb6 {[%clk 0:01:20.3]} 17.
Qa4 {[%clk 0:01:10.4]} 17... Rbb8 {[%clk 0:01:16.8]} 18. Nc4 {[%clk 0:01:10.7]}
18... Nb6 {[%clk 0:01:16.7]} 19. Nxb6 {[%clk 0:01:11.1]} 19... Qxb6 {[%clk
0:01:13.4]} 20. Rf2 {[%clk 0:01:11.2]} 20... Qb5 {[%clk 0:01:07.2]} 21. Be3
{[%clk 0:01:07]} 21... Ne8 {[%clk 0:01:02.4]} 22. Ra2 {[%clk 0:01:02.1]} 22...
Qd3 {[%clk 0:00:53.7]} 23. Re2 {[%clk 0:00:53.2]} 23... Nf6 {[%clk 0:00:42.5]}
24. Qc2 {[%clk 0:00:50]} 24... Qb5 {[%clk 0:00:40.2]} 25. Re1 {[%clk 0:00:45.3]}
25... Nd7 {[%clk 0:00:35.9]} 26. Rea1 {[%clk 0:00:45.2]} 26... a5 {[%clk
0:00:23]} 27. Be2 {[%clk 0:00:39.3]} 27... Qb6 {[%clk 0:00:22.4]} 28. Qa4 {[%clk
0:00:33.8]} 28... Nf6 {[%clk 0:00:20.6]} 29. Qc4 {[%clk 0:00:34.3]} 29... h5
{[%clk 0:00:16.4]} 30. h3 {[%clk 0:00:33.8]} 30... Nd7 {[%clk 0:00:09.9]} 31.
Bc1 {[%clk 0:00:33.3]} 31... Qb7 {[%clk 0:00:03.3]} 32. Ra3 {[%clk 0:00:32.2]}
32... Nb6 {[%clk 0:00:03.4]} 33. Qb5 {[%clk 0:00:32.9]} 33... a4 {[%clk
0:00:03]} 34. Bd2 {[%clk 0:00:30.5]} 34... Qc7 {[%clk 0:00:03.4]} 35. Qd3 {[%clk
0:00:29.9]} 35... c4 {[%clk 0:00:03.6]} 36. Qf3 {[%clk 0:00:30.6]} 36... Nd7
{[%clk 0:00:04]} 37. R1a2 {[%clk 0:00:29.4]} 37... Nc5 {[%clk 0:00:03.9]} 38.
Bxc4 {[%clk 0:00:30.1]} 38... Nb3 {[%clk 0:00:03.7]} 39. Bxb3 {[%clk 0:00:30.6]}
39... axb3 {[%clk 0:00:01.8]} 40. Rxa8 {[%clk 0:00:31.2]} 40... bxa2 {[%clk
0:00:02.7]} 41. Rxa2 {[%clk 0:00:31.9]} 41... Qc5+ {[%clk 0:00:03.1]} 42. Kh2
{[%clk 0:00:32.5]} 42... Qc4 {[%clk 0:00:03.3]} 43. Ra1 {[%clk 0:00:20.9]} 43...
Rxb2 {[%clk 0:00:03.6]} 44. Rd1 {[%clk 0:00:21.6]} 44... Rc2 {[%clk 0:00:03.4]}
45. Be1 {[%clk 0:00:12.6]} 45... Bxc3 {[%clk 0:00:03.5]} 46. Bh4 {[%clk
0:00:12.9]} 46... Bf6 {[%clk 0:00:03.3]} 47. Bxf6 {[%clk 0:00:12.5]} 47... exf6
{[%clk 0:00:04.2]} 48. f5 {[%clk 0:00:13.2]} 48... Rc3 {[%clk 0:00:04.1]} 49.
Qf4 {[%clk 0:00:13.2]} 49... Qe2 {[%clk 0:00:02.7]} 50. Rg1 {[%clk 0:00:12.6]}
50... Rc2 {[%clk 0:00:01.5]} 51. fxg6 {[%clk 0:00:11.5]} 1-0